[Event "Titled Tuesday Blitz June 13 Early 2023"]
[White "Rahman, Masruri"]
[Black "ATM622"]
[WhiteFideId "7101163"]
[WhiteElo "2256"]
[BlackElo "2584"]
[Result "1/2-1/2"]
[Round "5"]
[TimeControl "180+2"]
[Date "2023.06.13"]
[WhiteClock "0:00:05"]
[BlackClock "0:00:51"]
[Board "43"]

1. d4 {[%clk 0:03:00]}  Nf6 {[%clk 0:02:59]} 2. Bf4 {[%clk 0:03:00]}  e6 {[%clk 0:02:59]} 3. e3 {[%clk 0:03:00]}  d5 {[%clk 0:02:58]} 4. Nd2 {[%clk 0:02:59]}  c5 {[%clk 0:02:59]} 5. c3 {[%clk 0:02:59]}  Nc6 {[%clk 0:02:59]} 6. Ngf3 {[%clk 0:02:58]}  Bd6 {[%clk 0:02:59]} 7. Bg3 {[%clk 0:02:57]}  O-O {[%clk 0:02:57]} 8. Bd3 {[%clk 0:02:56]}  Re8 {[%clk 0:02:57]} 9. Ne5 {[%clk 0:02:48]}  Qc7 {[%clk 0:02:56]} 10. f4 {[%clk 0:02:47]}  b6 {[%clk 0:02:50]} 11. Bh4 {[%clk 0:02:45]}  Be7 {[%clk 0:02:49]} 12. Qf3 {[%clk 0:02:24]}  Bb7 {[%clk 0:02:40]} 13. Qh3 {[%clk 0:02:21]}  Nxe5 {[%clk 0:02:34]} 14. fxe5 {[%clk 0:02:19]}  Ne4 {[%clk 0:02:34]} 15. Nf3 {[%clk 0:01:34]}  Bxh4+ {[%clk 0:02:29]} 16. Qxh4 {[%clk 0:01:32]}  Qe7 {[%clk 0:02:29]} 17. Qh5 {[%clk 0:01:24]}  f5 {[%clk 0:02:19]} 18. exf6 {[%clk 0:01:22]}  Qxf6 {[%clk 0:02:18]} 19. O-O {[%clk 0:01:21]}  Rf8 {[%clk 0:02:05]} 20. Bxe4 {[%clk 0:01:20]}  dxe4 {[%clk 0:02:03]} 21. Ng5 {[%clk 0:01:20]}  Qg6 {[%clk 0:01:59]} 22. Qxg6 {[%clk 0:01:20]}  hxg6 {[%clk 0:02:00]} 23. Nxe6 {[%clk 0:01:20]}  Rxf1+ {[%clk 0:01:59]} 24. Rxf1 {[%clk 0:01:20]}  cxd4 {[%clk 0:01:52]} 25. Nxd4 {[%clk 0:01:15]}  Ba6 {[%clk 0:01:50]} 26. Rf4 {[%clk 0:01:11]}  Bd3 {[%clk 0:01:51]} 27. Rg4 {[%clk 0:01:12]}  Kf7 {[%clk 0:01:50]} 28. h4 {[%clk 0:01:06]}  Kf6 {[%clk 0:01:42]} 29. Rg5 {[%clk 0:01:02]}  Rh8 {[%clk 0:01:25]} 30. g3 {[%clk 0:01:02]}  Rh5 {[%clk 0:01:22]} 31. Rxh5 {[%clk 0:00:48]}  gxh5 {[%clk 0:01:23]} 32. Kf2 {[%clk 0:00:43]}  a5 {[%clk 0:01:22]} 33. Ke1 {[%clk 0:00:39]}  g5 {[%clk 0:01:21]} 34. Kd2 {[%clk 0:00:37]}  Bb1 {[%clk 0:01:14]} 35. a4 {[%clk 0:00:33]}  Bd3 {[%clk 0:01:13]} 36. b3 {[%clk 0:00:33]}  Bf1 {[%clk 0:01:11]} 37. b4 {[%clk 0:00:27]}  Bd3 {[%clk 0:01:06]} 38. bxa5 {[%clk 0:00:27]}  bxa5 {[%clk 0:01:07]} 39. Ke1 {[%clk 0:00:16]}  Bc4 {[%clk 0:01:03]} 40. Kf2 {[%clk 0:00:15]}  gxh4 {[%clk 0:00:54]} 41. gxh4 {[%clk 0:00:14]}  Bd5 {[%clk 0:00:52]} 42. Kg3 {[%clk 0:00:13]}  Ke5 {[%clk 0:00:52]} 43. Kg2 {[%clk 0:00:08]}  Kf6 {[%clk 0:00:52]} 44. Kg3 {[%clk 0:00:08]}  Ke5 {[%clk 0:00:52]} 45. Kf2 {[%clk 0:00:05]}  Kf6 {[%clk 0:00:52]} 46. Ke2 {[%clk 0:00:04]}  Bc4+ {[%clk 0:00:51]} 47. Kf2 {[%clk 0:00:04]}  Ke5 {[%clk 0:00:51]} 48. Kg3 {[%clk 0:00:05]}  Bd5 {[%clk 0:00:51]} 1/2-1/2


[Site "https://www.chess.com"]

[Event "Titled Tuesday Blitz June 13 Early 2023"]
[White "Vakhlamov, Igor L."]
[Black "Deng, Henry"]
[WhiteFideId "24126748"]
[BlackFideId "30965454"]
[WhiteElo "2407"]
[BlackElo "2572"]
[Result "1-0"]
[Round "5"]
[TimeControl "180+2"]
[Date "2023.06.13"]
[WhiteClock "0:01:31"]
[BlackClock "0:01:18"]
[Board "45"]

1. e4 {[%clk 0:03:00]}  c5 {[%clk 0:02:59]} 2. Nf3 {[%clk 0:03:00]}  e6 {[%clk 0:02:59]} 3. Nc3 {[%clk 0:03:00]}  Nc6 {[%clk 0:02:59]} 4. d4 {[%clk 0:03:00]}  cxd4 {[%clk 0:02:59]} 5. Nxd4 {[%clk 0:03:00]}  Nf6 {[%clk 0:03:00]} 6. Nxc6 {[%clk 0:02:59]}  bxc6 {[%clk 0:03:01]} 7. Bd3 {[%clk 0:02:59]}  d5 {[%clk 0:03:01]} 8. O-O {[%clk 0:02:59]}  Be7 {[%clk 0:02:59]} 9. Qf3 {[%clk 0:03:00]}  O-O {[%clk 0:02:56]} 10. Re1 {[%clk 0:03:00]}  d4 {[%clk 0:02:48]} 11. Ne2 {[%clk 0:02:59]}  e5 {[%clk 0:02:49]} 12. h3 {[%clk 0:02:57]}  Be6 {[%clk 0:02:44]} 13. Ng3 {[%clk 0:02:55]}  Nd7 {[%clk 0:02:43]} 14. Nf5 {[%clk 0:02:52]}  Kh8 {[%clk 0:02:37]} 15. b3 {[%clk 0:02:44]}  Bb4 {[%clk 0:02:28]} 16. Re2 {[%clk 0:02:40]}  g6 {[%clk 0:02:27]} 17. Nh6 {[%clk 0:02:27]}  Qh4 {[%clk 0:02:24]} 18. Rb1 {[%clk 0:01:45]}  a5 {[%clk 0:01:54]} 19. Bc4 {[%clk 0:01:37]}  Bxc4 {[%clk 0:01:35]} 20. bxc4 {[%clk 0:01:38]}  Qe7 {[%clk 0:01:28]} 21. a3 {[%clk 0:01:33]}  Bd6 {[%clk 0:01:25]} 22. Rb7 {[%clk 0:01:34]}  Rab8 {[%clk 0:01:18]} 23. Rxd7 {[%clk 0:01:31]} 1-0


[Site "https://www.chess.com"]

[Event "Titled Tuesday Blitz June 13 Early 2023"]
[White "Ilamparthi A R"]
[Black "Arat, Ufuk Sezen"]
[WhiteFideId "45015775"]
[BlackFideId "6309089"]
[WhiteElo "2348"]
[BlackElo "2289"]
[Result "1-0"]
[Round "5"]
[TimeControl "180+2"]
[Date "2023.06.13"]
[WhiteClock "0:00:30"]
[BlackClock "0:00:02"]
[Board "46"]

1. e4 {[%clk 0:02:57]}  c5 {[%clk 0:02:59]} 2. Nf3 {[%clk 0:02:56]}  e6 {[%clk 0:03:00]} 3. d3 {[%clk 0:02:56]}  d5 {[%clk 0:03:00]} 4. Qe2 {[%clk 0:02:55]}  Nf6 {[%clk 0:02:59]} 5. g3 {[%clk 0:02:54]}  dxe4 {[%clk 0:02:55]} 6. dxe4 {[%clk 0:02:54]}  b6 {[%clk 0:02:55]} 7. Bg2 {[%clk 0:02:50]}  Ba6 {[%clk 0:02:52]} 8. c4 {[%clk 0:02:49]}  Bb7 {[%clk 0:02:52]} 9. Nc3 {[%clk 0:02:44]}  Nc6 {[%clk 0:02:51]} 10. e5 {[%clk 0:02:40]}  Nd7 {[%clk 0:02:50]} 11. O-O {[%clk 0:02:39]}  Be7 {[%clk 0:02:50]} 12. Rd1 {[%clk 0:02:37]}  Qc8 {[%clk 0:02:48]} 13. Nb5 {[%clk 0:02:16]}  O-O {[%clk 0:02:46]} 14. Bg5 {[%clk 0:02:10]}  Bxg5 {[%clk 0:02:30]} 15. Nd6 {[%clk 0:02:09]}  Qc7 {[%clk 0:02:22]} 16. Nxg5 {[%clk 0:02:03]}  h6 {[%clk 0:01:43]} 17. Nf3 {[%clk 0:01:16]}  Rad8 {[%clk 0:01:36]} 18. Nb5 {[%clk 0:01:11]}  Qb8 {[%clk 0:01:34]} 19. Re1 {[%clk 0:01:08]}  a6 {[%clk 0:01:13]} 20. Nd6 {[%clk 0:01:05]}  Ba8 {[%clk 0:01:13]} 21. Rad1 {[%clk 0:00:53]}  Ndxe5 {[%clk 0:01:01]} 22. Nxe5 {[%clk 0:00:50]}  Rxd6 {[%clk 0:01:00]} 23. Nd7 {[%clk 0:00:47]}  Rxd7 {[%clk 0:00:42]} 24. Rxd7 {[%clk 0:00:48]}  Nd4 {[%clk 0:00:43]} 25. Qe5 {[%clk 0:00:44]}  Bxg2 {[%clk 0:00:37]} 26. Kxg2 {[%clk 0:00:40]}  Qa8+ {[%clk 0:00:15]} 27. Qe4 {[%clk 0:00:37]}  Qe8 {[%clk 0:00:05]} 28. Qb7 {[%clk 0:00:36]}  b5 {[%clk 0:00:04]} 29. b4 {[%clk 0:00:30]}  cxb4 {[%clk 0:00:02]} 30. Rxd4 {[%clk 0:00:30]} 1-0


[Site "https://www.chess.com"]

[Event "Titled Tuesday Blitz June 13 Early 2023"]
[White "Gadimbayli, Abdulla"]
[Black "Vovk, Orest"]
[WhiteFideId "13404938"]
[BlackFideId "14113490"]
[WhiteElo "2386"]
[BlackElo "2215"]
[Result "1-0"]
[Round "5"]
[TimeControl "180+2"]
[Date "2023.06.13"]
[WhiteClock "0:00:06"]
[BlackClock "0:00:00"]
[Board "48"]

1. e4 {[%clk 0:02:58]}  g5 {[%clk 0:02:56]} 2. d4 {[%clk 0:02:46]}  g4 {[%clk 0:02:55]} 3. Bd3 {[%clk 0:02:44]}  Bg7 {[%clk 0:02:46]} 4. c3 {[%clk 0:02:44]}  d5 {[%clk 0:02:46]} 5. e5 {[%clk 0:02:43]}  c5 {[%clk 0:02:46]} 6. Be3 {[%clk 0:02:43]}  Nc6 {[%clk 0:02:45]} 7. Nd2 {[%clk 0:02:39]}  Qb6 {[%clk 0:02:45]} 8. Ne2 {[%clk 0:02:36]}  c4 {[%clk 0:02:43]} 9. Bc2 {[%clk 0:02:30]}  Qxb2 {[%clk 0:02:42]} 10. O-O {[%clk 0:02:21]}  h5 {[%clk 0:02:35]} 11. Re1 {[%clk 0:02:11]}  h4 {[%clk 0:02:27]} 12. f3 {[%clk 0:02:03]}  h3 {[%clk 0:02:13]} 13. Nf4 {[%clk 0:01:54]}  e6 {[%clk 0:01:53]} 14. fxg4 {[%clk 0:01:49]}  Qxc3 {[%clk 0:01:47]} 15. Ba4 {[%clk 0:01:45]}  hxg2 {[%clk 0:01:39]} 16. Nf3 {[%clk 0:01:38]}  Bd7 {[%clk 0:01:32]} 17. Rb1 {[%clk 0:01:36]}  O-O-O {[%clk 0:01:28]} 18. Kxg2 {[%clk 0:01:17]}  Qa3 {[%clk 0:00:59]} 19. Bc2 {[%clk 0:01:03]}  Nge7 {[%clk 0:00:46]} 20. Qd2 {[%clk 0:00:59]}  Qa5 {[%clk 0:00:41]} 21. Qxa5 {[%clk 0:00:45]}  Nxa5 {[%clk 0:00:42]} 22. Nh5 {[%clk 0:00:40]}  Rdg8 {[%clk 0:00:35]} 23. Nxg7 {[%clk 0:00:35]}  Rxg7 {[%clk 0:00:36]} 24. Bg5 {[%clk 0:00:36]}  Nac6 {[%clk 0:00:30]} 25. h4 {[%clk 0:00:32]}  Rhg8 {[%clk 0:00:17]} 26. Kg3 {[%clk 0:00:32]}  a6 {[%clk 0:00:13]} 27. Kf4 {[%clk 0:00:33]}  Ng6+ {[%clk 0:00:12]} 28. Bxg6 {[%clk 0:00:28]}  fxg6 {[%clk 0:00:12]} 29. Bf6 {[%clk 0:00:29]}  Rf7 {[%clk 0:00:12]} 30. Ng5 {[%clk 0:00:27]}  Rff8 {[%clk 0:00:09]} 31. Ke3 {[%clk 0:00:27]}  b5 {[%clk 0:00:08]} 32. Rh1 {[%clk 0:00:27]}  b4 {[%clk 0:00:07]} 33. h5 {[%clk 0:00:23]}  gxh5 {[%clk 0:00:06]} 34. gxh5 {[%clk 0:00:24]}  a5 {[%clk 0:00:03]} 35. h6 {[%clk 0:00:24]}  a4 {[%clk 0:00:02]} 36. h7 {[%clk 0:00:24]}  Rh8 {[%clk 0:00:02]} 37. Bxh8 {[%clk 0:00:24]}  Rxh8 {[%clk 0:00:03]} 38. Nf7 {[%clk 0:00:24]}  Rxh7 {[%clk 0:00:03]} 39. Rxh7 {[%clk 0:00:25]}  b3 {[%clk 0:00:03]} 40. axb3 {[%clk 0:00:21]}  axb3 {[%clk 0:00:03]} 41. Ng5 {[%clk 0:00:18]}  Nb4 {[%clk 0:00:02]} 42. Kd2 {[%clk 0:00:16]}  Nc2 {[%clk 0:00:02]} 43. Kc3 {[%clk 0:00:16]}  Na3 {[%clk 0:00:02]} 44. Ra1 {[%clk 0:00:14]}  Nb5+ {[%clk 0:00:02]} 45. Kb4 {[%clk 0:00:15]}  Nxd4 {[%clk 0:00:03]} 46. Kc5 {[%clk 0:00:12]}  Nc6 {[%clk 0:00:02]} 47. Nxe6 {[%clk 0:00:08]}  Bxe6 {[%clk 0:00:01]} 48. Kxc6 {[%clk 0:00:07]}  Kb8 {[%clk 0:00:00]} 49. Rh8+ {[%clk 0:00:06]} 1-0


[Site "https://www.chess.com"]

[Event "Titled Tuesday Blitz June 13 Early 2023"]
[White "Albornoz Cabrera, Carlos Daniel"]
[Black "Safin, Robert"]
[WhiteFideId "3518736"]
[BlackFideId "34189120"]
[WhiteElo "2540"]
[BlackElo "2341"]
[Result "1-0"]
[Round "5"]
[TimeControl "180+2"]
[Date "2023.06.13"]
[WhiteClock "0:00:07"]
[BlackClock "0:00:00"]
[Board "50"]

1. d4 {[%clk 0:03:00]}  Nf6 {[%clk 0:02:58]} 2. c4 {[%clk 0:03:01]}  e6 {[%clk 0:02:58]} 3. Nc3 {[%clk 0:03:01]}  Bb4 {[%clk 0:02:57]} 4. e3 {[%clk 0:03:01]}  O-O {[%clk 0:02:56]} 5. Bd3 {[%clk 0:03:01]}  b6 {[%clk 0:02:53]} 6. Ne2 {[%clk 0:03:01]}  Bb7 {[%clk 0:02:52]} 7. f3 {[%clk 0:03:01]}  c5 {[%clk 0:02:42]} 8. a3 {[%clk 0:02:59]}  Bxc3+ {[%clk 0:02:40]} 9. bxc3 {[%clk 0:03:00]}  d5 {[%clk 0:02:39]} 10. O-O {[%clk 0:03:00]}  dxc4 {[%clk 0:02:29]} 11. Bxc4 {[%clk 0:03:00]}  Nbd7 {[%clk 0:02:29]} 12. e4 {[%clk 0:02:58]}  Rc8 {[%clk 0:02:25]} 13. Bd3 {[%clk 0:02:57]}  e5 {[%clk 0:02:10]} 14. d5 {[%clk 0:02:54]}  Ne8 {[%clk 0:02:10]} 15. c4 {[%clk 0:02:36]}  Nd6 {[%clk 0:02:08]} 16. a4 {[%clk 0:02:36]}  f6 {[%clk 0:01:30]} 17. Nc3 {[%clk 0:02:32]}  a6 {[%clk 0:01:17]} 18. a5 {[%clk 0:02:28]}  b5 {[%clk 0:01:16]} 19. cxb5 {[%clk 0:02:27]}  c4 {[%clk 0:01:16]} 20. Be2 {[%clk 0:02:18]}  axb5 {[%clk 0:01:15]} 21. Ba3 {[%clk 0:02:18]}  Nc5 {[%clk 0:01:14]} 22. Bb4 {[%clk 0:02:13]}  Na6 {[%clk 0:01:01]} 23. Qb1 {[%clk 0:02:13]}  Nc7 {[%clk 0:00:51]} 24. Qb2 {[%clk 0:02:10]}  Qd7 {[%clk 0:00:41]} 25. Qa3 {[%clk 0:02:04]}  Rfd8 {[%clk 0:00:40]} 26. Rfb1 {[%clk 0:02:00]}  Ba6 {[%clk 0:00:40]} 27. Bc5 {[%clk 0:01:56]}  Rb8 {[%clk 0:00:30]} 28. Bb6 {[%clk 0:01:56]}  Rdc8 {[%clk 0:00:30]} 29. Qb4 {[%clk 0:01:48]}  Na8 {[%clk 0:00:23]} 30. Bf2 {[%clk 0:01:45]}  h6 {[%clk 0:00:19]} 31. h4 {[%clk 0:01:44]}  Qc7 {[%clk 0:00:19]} 32. Ra2 {[%clk 0:01:38]}  Rb7 {[%clk 0:00:19]} 33. Rc2 {[%clk 0:01:34]}  Rbb8 {[%clk 0:00:19]} 34. Qa3 {[%clk 0:01:29]}  Rb7 {[%clk 0:00:17]} 35. Na2 {[%clk 0:01:29]}  Rbb8 {[%clk 0:00:13]} 36. Nb4 {[%clk 0:01:29]}  Qb7 {[%clk 0:00:09]} 37. Nc6 {[%clk 0:01:27]}  Rxc6 {[%clk 0:00:09]} 38. dxc6 {[%clk 0:01:28]}  Qxc6 {[%clk 0:00:10]} 39. Qc5 {[%clk 0:01:24]}  Qxc5 {[%clk 0:00:08]} 40. Bxc5 {[%clk 0:01:24]}  Nb7 {[%clk 0:00:08]} 41. Bb4 {[%clk 0:01:12]}  Nc7 {[%clk 0:00:07]} 42. Rd2 {[%clk 0:00:57]}  Ne6 {[%clk 0:00:07]} 43. Rd7 {[%clk 0:00:57]}  Nd4 {[%clk 0:00:07]} 44. Bf1 {[%clk 0:00:54]}  Rc8 {[%clk 0:00:04]} 45. Bc3 {[%clk 0:00:49]}  Nc6 {[%clk 0:00:04]} 46. Rxb5 {[%clk 0:00:37]}  Bxb5 {[%clk 0:00:04]} 47. Rxb7 {[%clk 0:00:38]}  Ba6 {[%clk 0:00:02]} 48. Rb6 {[%clk 0:00:38]}  Nb8 {[%clk 0:00:01]} 49. Bb4 {[%clk 0:00:28]}  Kf7 {[%clk 0:00:02]} 50. Bd6 {[%clk 0:00:29]}  Rc6 {[%clk 0:00:02]} 51. Rxb8 {[%clk 0:00:06]}  Rxd6 {[%clk 0:00:02]} 52. Rb6 {[%clk 0:00:06]}  Rxb6 {[%clk 0:00:01]} 53. axb6 {[%clk 0:00:07]}  Ke7 {[%clk 0:00:01]} 54. Bxc4 {[%clk 0:00:07]}  Bb7 {[%clk 0:00:00]} 55. Bd5 {[%clk 0:00:07]} 1-0


[Site "https://www.chess.com"]

[Event "Titled Tuesday Blitz June 13 Early 2023"]
[White "Akylbek2021"]
[Black "Rakotomaharo, Fy Antenaina"]
[BlackFideId "13100050"]
[WhiteElo "2508"]
[BlackElo "2427"]
[Result "0-1"]
[Round "5"]
[TimeControl "180+2"]
[Date "2023.06.13"]
[WhiteClock "0:00:01"]
[BlackClock "0:00:10"]
[Board "53"]

1. e4 {[%clk 0:03:00]}  e5 {[%clk 0:02:59]} 2. Nf3 {[%clk 0:03:00]}  Nf6 {[%clk 0:03:00]} 3. Nc3 {[%clk 0:02:58]}  Nc6 {[%clk 0:02:58]} 4. a3 {[%clk 0:02:54]}  d5 {[%clk 0:02:57]} 5. exd5 {[%clk 0:02:53]}  Nxd5 {[%clk 0:02:58]} 6. Nxe5 {[%clk 0:02:53]}  Nxe5 {[%clk 0:02:45]} 7. Qe2 {[%clk 0:02:53]}  f6 {[%clk 0:02:31]} 8. d4 {[%clk 0:02:51]}  Nxc3 {[%clk 0:02:28]} 9. bxc3 {[%clk 0:02:51]}  Bd6 {[%clk 0:02:25]} 10. dxe5 {[%clk 0:02:45]}  fxe5 {[%clk 0:02:26]} 11. Qb5+ {[%clk 0:02:32]}  c6 {[%clk 0:02:16]} 12. Qb3 {[%clk 0:02:19]}  Qe7 {[%clk 0:02:10]} 13. Bc4 {[%clk 0:02:17]}  b5 {[%clk 0:02:10]} 14. Bd3 {[%clk 0:01:57]}  e4 {[%clk 0:02:08]} 15. Be2 {[%clk 0:01:51]}  Be6 {[%clk 0:01:58]} 16. c4 {[%clk 0:01:47]}  O-O {[%clk 0:01:53]} 17. Be3 {[%clk 0:01:32]}  Kh8 {[%clk 0:01:46]} 18. O-O {[%clk 0:01:26]}  Rab8 {[%clk 0:01:23]} 19. Qc3 {[%clk 0:01:07]}  bxc4 {[%clk 0:01:02]} 20. Bxc4 {[%clk 0:01:07]}  Bd5 {[%clk 0:01:03]} 21. Bxd5 {[%clk 0:01:02]}  cxd5 {[%clk 0:01:04]} 22. Qd4 {[%clk 0:01:03]}  Be5 {[%clk 0:00:55]} 23. Qc5 {[%clk 0:00:20]}  Qxc5 {[%clk 0:00:49]} 24. Bxc5 {[%clk 0:00:21]}  Rfc8 {[%clk 0:00:49]} 25. Bxa7 {[%clk 0:00:19]}  Ra8 {[%clk 0:00:42]} 26. Rad1 {[%clk 0:00:18]}  Rxa7 {[%clk 0:00:40]} 27. Rxd5 {[%clk 0:00:18]}  Bf6 {[%clk 0:00:37]} 28. Re1 {[%clk 0:00:14]}  Rxa3 {[%clk 0:00:33]} 29. g3 {[%clk 0:00:14]}  Ra4 {[%clk 0:00:29]} 30. Re2 {[%clk 0:00:11]}  h6 {[%clk 0:00:26]} 31. Kg2 {[%clk 0:00:11]}  Rac4 {[%clk 0:00:25]} 32. Rd7 {[%clk 0:00:09]}  Ra8 {[%clk 0:00:24]} 33. Rd6 {[%clk 0:00:09]}  Kg8 {[%clk 0:00:19]} 34. Re6 {[%clk 0:00:09]}  Raa4 {[%clk 0:00:20]} 35. Kh3 {[%clk 0:00:08]}  Kf7 {[%clk 0:00:20]} 36. Rd6 {[%clk 0:00:08]}  Ra2 {[%clk 0:00:20]} 37. Rdd2 {[%clk 0:00:07]}  Bg5 {[%clk 0:00:19]} 38. Rd7+ {[%clk 0:00:05]}  Kg8 {[%clk 0:00:16]} 39. Rd5 {[%clk 0:00:02]}  Raxc2 {[%clk 0:00:14]} 40. Rxc2 {[%clk 0:00:03]}  Rxc2 {[%clk 0:00:14]} 41. Kg2 {[%clk 0:00:04]}  e3 {[%clk 0:00:14]} 42. Rf5 {[%clk 0:00:05]}  g6 {[%clk 0:00:10]} 43. Rf3 {[%clk 0:00:01]}  e2 {[%clk 0:00:10]} 0-1


[Site "https://www.chess.com"]

[Event "Titled Tuesday Blitz June 13 Early 2023"]
[White "Papasimakopoulos, Alexandros"]
[Black "GMFYHR1"]
[WhiteFideId "4244125"]
[WhiteElo "2359"]
[BlackElo "2464"]
[Result "1-0"]
[Round "5"]
[TimeControl "180+2"]
[Date "2023.06.13"]
[WhiteClock "0:01:10"]
[BlackClock "0:01:13"]
[Board "54"]

1. d4 {[%clk 0:02:55]}  Nf6 {[%clk 0:02:59]} 2. c4 {[%clk 0:02:55]}  e6 {[%clk 0:02:59]} 3. Nc3 {[%clk 0:02:55]}  Bb4 {[%clk 0:02:59]} 4. Qc2 {[%clk 0:02:54]}  O-O {[%clk 0:02:59]} 5. a3 {[%clk 0:02:54]}  Bxc3+ {[%clk 0:02:59]} 6. Qxc3 {[%clk 0:02:55]}  d5 {[%clk 0:02:59]} 7. Nf3 {[%clk 0:02:54]}  Nbd7 {[%clk 0:02:50]} 8. Bg5 {[%clk 0:02:43]}  h6 {[%clk 0:02:49]} 9. Bh4 {[%clk 0:02:42]}  c6 {[%clk 0:02:45]} 10. e3 {[%clk 0:02:42]}  b6 {[%clk 0:02:45]} 11. cxd5 {[%clk 0:02:36]}  cxd5 {[%clk 0:02:38]} 12. Qc6 {[%clk 0:02:34]}  Rb8 {[%clk 0:02:38]} 13. Bd3 {[%clk 0:02:23]}  Bb7 {[%clk 0:02:38]} 14. Qd6 {[%clk 0:02:23]}  Rc8 {[%clk 0:02:24]} 15. O-O {[%clk 0:02:11]}  Qc7 {[%clk 0:02:24]} 16. Qxc7 {[%clk 0:02:02]}  Rxc7 {[%clk 0:02:25]} 17. Bg3 {[%clk 0:02:03]}  Rc6 {[%clk 0:02:22]} 18. Nd2 {[%clk 0:01:53]}  a6 {[%clk 0:02:18]} 19. f3 {[%clk 0:01:53]}  Rcc8 {[%clk 0:01:56]} 20. Rfc1 {[%clk 0:01:47]}  b5 {[%clk 0:01:51]} 21. Nb3 {[%clk 0:01:45]}  Nb6 {[%clk 0:01:51]} 22. Nc5 {[%clk 0:01:42]}  Bc6 {[%clk 0:01:43]} 23. Nxa6 {[%clk 0:01:40]}  Nc4 {[%clk 0:01:44]} 24. Nb4 {[%clk 0:01:18]}  Nxb2 {[%clk 0:01:13]} 25. Nxc6 {[%clk 0:01:10]} 1-0


[Site "https://www.chess.com"]

[Event "Titled Tuesday Blitz June 13 Early 2023"]
[White "Pulpan, Jakub"]
[Black "Andreassen, Lars"]
[WhiteFideId "302759"]
[BlackFideId "1504878"]
[WhiteElo "2484"]
[BlackElo "2119"]
[Result "1/2-1/2"]
[Round "5"]
[TimeControl "180+2"]
[Date "2023.06.13"]
[WhiteClock "0:00:02"]
[BlackClock "0:00:07"]
[Board "57"]

1. b3 {[%clk 0:03:00]}  d5 {[%clk 0:02:59]} 2. Nf3 {[%clk 0:02:53]}  Nf6 {[%clk 0:02:59]} 3. Bb2 {[%clk 0:02:52]}  Bf5 {[%clk 0:02:58]} 4. e3 {[%clk 0:02:51]}  e6 {[%clk 0:02:58]} 5. Bd3 {[%clk 0:02:51]}  Bxd3 {[%clk 0:02:57]} 6. cxd3 {[%clk 0:02:52]}  Be7 {[%clk 0:02:57]} 7. d4 {[%clk 0:02:53]}  O-O {[%clk 0:02:57]} 8. O-O {[%clk 0:02:53]}  Nbd7 {[%clk 0:02:55]} 9. Nc3 {[%clk 0:02:53]}  c5 {[%clk 0:02:46]} 10. dxc5 {[%clk 0:02:54]}  Nxc5 {[%clk 0:02:46]} 11. d4 {[%clk 0:02:50]}  Nce4 {[%clk 0:02:46]} 12. Nxe4 {[%clk 0:02:51]}  Nxe4 {[%clk 0:02:47]} 13. Nd2 {[%clk 0:02:51]}  Nxd2 {[%clk 0:02:45]} 14. Qxd2 {[%clk 0:02:51]}  Rc8 {[%clk 0:02:46]} 15. Bc3 {[%clk 0:02:47]}  Qd7 {[%clk 0:02:39]} 16. Rfc1 {[%clk 0:02:38]}  Ba3 {[%clk 0:02:38]} 17. Bb2 {[%clk 0:02:37]}  Bxb2 {[%clk 0:02:37]} 18. Qxb2 {[%clk 0:02:38]}  Rxc1+ {[%clk 0:02:37]} 19. Rxc1 {[%clk 0:02:38]}  Rc8 {[%clk 0:02:38]} 20. Rc5 {[%clk 0:02:37]}  b6 {[%clk 0:02:37]} 21. Rc3 {[%clk 0:02:36]}  g6 {[%clk 0:02:20]} 22. h4 {[%clk 0:02:36]}  h5 {[%clk 0:02:19]} 23. Qc1 {[%clk 0:02:35]}  Rxc3 {[%clk 0:02:19]} 24. Qxc3 {[%clk 0:02:36]}  Qe7 {[%clk 0:02:17]} 25. g3 {[%clk 0:02:33]}  Qa3 {[%clk 0:02:16]} 26. Qc2 {[%clk 0:02:33]}  Kg7 {[%clk 0:02:14]} 27. Kg2 {[%clk 0:02:32]}  b5 {[%clk 0:01:51]} 28. Kf3 {[%clk 0:02:29]}  a5 {[%clk 0:01:51]} 29. Kf4 {[%clk 0:02:21]}  a4 {[%clk 0:01:49]} 30. bxa4 {[%clk 0:02:18]}  bxa4 {[%clk 0:01:49]} 31. Ke5 {[%clk 0:01:56]}  Qb4 {[%clk 0:01:44]} 32. Kf4 {[%clk 0:01:39]}  a3 {[%clk 0:01:38]} 33. Qc7 {[%clk 0:01:27]}  Qb2 {[%clk 0:01:35]} 34. Qe5+ {[%clk 0:01:27]}  Kh7 {[%clk 0:01:35]} 35. f3 {[%clk 0:01:25]}  Qxa2 {[%clk 0:01:30]} 36. Qc7 {[%clk 0:01:26]}  Kg7 {[%clk 0:01:28]} 37. Qe5+ {[%clk 0:01:23]}  Kg8 {[%clk 0:01:19]} 38. Qb8+ {[%clk 0:01:10]}  Kh7 {[%clk 0:01:17]} 39. Qf8 {[%clk 0:01:07]}  Qc2 {[%clk 0:01:03]} 40. Qxf7+ {[%clk 0:01:07]}  Kh6 {[%clk 0:00:56]} 41. Qf8+ {[%clk 0:00:32]}  Kh7 {[%clk 0:00:56]} 42. Qe7+ {[%clk 0:00:32]}  Kh6 {[%clk 0:00:53]} 43. e4 {[%clk 0:00:16]}  dxe4 {[%clk 0:00:45]} 44. Qf8+ {[%clk 0:00:16]}  Kh7 {[%clk 0:00:45]} 45. Qf7+ {[%clk 0:00:16]}  Kh6 {[%clk 0:00:45]} 46. Qg8 {[%clk 0:00:03]}  Qd2+ {[%clk 0:00:33]} 47. Ke5 {[%clk 0:00:02]}  Qa5+ {[%clk 0:00:29]} 48. Kxe6 {[%clk 0:00:02]}  Qb6+ {[%clk 0:00:19]} 49. Ke5 {[%clk 0:00:01]}  Qc7+ {[%clk 0:00:10]} 50. Kxe4 {[%clk 0:00:01]}  Qc2+ {[%clk 0:00:08]} 51. Ke3 {[%clk 0:00:01]}  Qc3+ {[%clk 0:00:08]} 52. Ke4 {[%clk 0:00:01]}  Qc2+ {[%clk 0:00:08]} 53. Ke5 {[%clk 0:00:02]}  Qc7+ {[%clk 0:00:07]} 54. Ke4 {[%clk 0:00:02]}  Qc2+ {[%clk 0:00:07]} 1/2-1/2


[Site "https://www.chess.com"]

[Event "Titled Tuesday Blitz June 13 Early 2023"]
[White "Arencibia Monduy, Antonio"]
[Black "Sattarov, Bobir"]
[WhiteFideId "3507939"]
[BlackFideId "14203081"]
[WhiteElo "2568"]
[BlackElo "2351"]
[Result "0-1"]
[Round "5"]
[TimeControl "180+2"]
[Date "2023.06.13"]
[WhiteClock "0:00:02"]
[BlackClock "0:00:32"]
[Board "63"]

1. e4 {[%clk 0:03:00]}  e5 {[%clk 0:02:55]} 2. Bc4 {[%clk 0:03:00]}  Nf6 {[%clk 0:02:51]} 3. d3 {[%clk 0:03:00]}  Be7 {[%clk 0:02:50]} 4. Nf3 {[%clk 0:03:00]}  Nc6 {[%clk 0:02:49]} 5. O-O {[%clk 0:03:00]}  O-O {[%clk 0:02:49]} 6. c3 {[%clk 0:03:01]}  d6 {[%clk 0:02:49]} 7. Bb3 {[%clk 0:03:00]}  Kh8 {[%clk 0:02:48]} 8. Re1 {[%clk 0:02:58]}  Ng8 {[%clk 0:02:48]} 9. d4 {[%clk 0:02:58]}  f5 {[%clk 0:02:46]} 10. dxe5 {[%clk 0:02:55]}  fxe4 {[%clk 0:02:46]} 11. Rxe4 {[%clk 0:02:54]}  Bf5 {[%clk 0:02:40]} 12. Re1 {[%clk 0:02:29]}  Bg4 {[%clk 0:02:37]} 13. exd6 {[%clk 0:01:32]}  Bxd6 {[%clk 0:02:24]} 14. Bxg8 {[%clk 0:01:02]}  Bxf3 {[%clk 0:02:00]} 15. gxf3 {[%clk 0:01:01]}  Qh4 {[%clk 0:01:48]} 16. Be6 {[%clk 0:00:38]}  Qxh2+ {[%clk 0:01:30]} 17. Kf1 {[%clk 0:00:38]}  Rae8 {[%clk 0:01:30]} 18. Qd5 {[%clk 0:00:29]}  Rf6 {[%clk 0:00:43]} 19. Re3 {[%clk 0:00:04]}  Rfxe6 {[%clk 0:00:37]} 20. Rxe6 {[%clk 0:00:03]}  Qh3+ {[%clk 0:00:37]} 21. Kg1 {[%clk 0:00:02]}  Rxe6 {[%clk 0:00:36]} 22. Bg5 {[%clk 0:00:02]}  Re1# {[%clk 0:00:32]} 0-1


[Site "https://www.chess.com"]